[Event "Titled Tuesday Blitz July 18 Early 2023"]
[White "Wang, Alexander J"]
[Black "Castillo Pena, Patricia Evarista"]
[WhiteFideId "30955270"]
[BlackFideId "6412106"]
[WhiteElo "2293"]
[BlackElo "1836"]
[Result "1-0"]
[Round "3"]
[TimeControl "180+2"]
[Date "2023.07.18"]
[WhiteClock "0:00:20"]
[BlackClock "0:00:10"]
[Board "218"]

1. e4 {[%clk 0:02:57]}  c5 {[%clk 0:02:58]} 2. Nf3 {[%clk 0:02:57]}  d6 {[%clk 0:02:58]} 3. d4 {[%clk 0:02:58]}  cxd4 {[%clk 0:02:58]} 4. Nxd4 {[%clk 0:02:59]}  Nf6 {[%clk 0:02:59]} 5. Nc3 {[%clk 0:02:59]}  a6 {[%clk 0:02:59]} 6. g3 {[%clk 0:02:59]}  e5 {[%clk 0:02:58]} 7. Nde2 {[%clk 0:02:59]}  Be7 {[%clk 0:02:57]} 8. Bg2 {[%clk 0:02:59]}  b5 {[%clk 0:02:57]} 9. a3 {[%clk 0:02:58]}  O-O {[%clk 0:02:54]} 10. O-O {[%clk 0:02:57]}  Nbd7 {[%clk 0:02:46]} 11. h3 {[%clk 0:02:56]}  Bb7 {[%clk 0:02:46]} 12. Be3 {[%clk 0:02:55]}  Rc8 {[%clk 0:02:43]} 13. g4 {[%clk 0:02:55]}  Nc5 {[%clk 0:02:41]} 14. Ng3 {[%clk 0:02:55]}  g6 {[%clk 0:02:37]} 15. Qd2 {[%clk 0:02:52]}  Ne6 {[%clk 0:02:35]} 16. Nd5 {[%clk 0:02:47]}  Bxd5 {[%clk 0:02:16]} 17. exd5 {[%clk 0:02:48]}  Nc7 {[%clk 0:02:08]} 18. g5 {[%clk 0:02:38]}  Nd7 {[%clk 0:02:03]} 19. Ne4 {[%clk 0:02:20]}  f5 {[%clk 0:01:40]} 20. gxf6 {[%clk 0:02:17]}  Nxf6 {[%clk 0:01:39]} 21. Nxf6+ {[%clk 0:02:16]}  Bxf6 {[%clk 0:01:39]} 22. b3 {[%clk 0:02:13]}  Qe8 {[%clk 0:01:19]} 23. Rad1 {[%clk 0:01:55]}  Qf7 {[%clk 0:01:18]} 24. c4 {[%clk 0:01:07]}  bxc4 {[%clk 0:01:13]} 25. bxc4 {[%clk 0:01:08]}  Ne8 {[%clk 0:01:13]} 26. c5 {[%clk 0:00:33]}  Kh8 {[%clk 0:00:54]} 27. c6 {[%clk 0:00:33]}  Nc7 {[%clk 0:00:53]} 28. Rb1 {[%clk 0:00:30]}  Bg7 {[%clk 0:00:48]} 29. Rb7 {[%clk 0:00:29]}  Qf5 {[%clk 0:00:39]} 30. a4 {[%clk 0:00:26]}  e4 {[%clk 0:00:36]} 31. Rd1 {[%clk 0:00:26]}  Be5 {[%clk 0:00:32]} 32. Bd4 {[%clk 0:00:25]}  e3 {[%clk 0:00:23]} 33. Qxe3 {[%clk 0:00:22]}  Bxd4 {[%clk 0:00:20]} 34. Qxd4+ {[%clk 0:00:23]}  Qe5 {[%clk 0:00:15]} 35. Qxe5+ {[%clk 0:00:22]}  dxe5 {[%clk 0:00:15]} 36. d6 {[%clk 0:00:23]}  Ne6 {[%clk 0:00:15]} 37. c7 {[%clk 0:00:22]}  Nd4 {[%clk 0:00:14]} 38. d7 {[%clk 0:00:20]}  Rxc7 {[%clk 0:00:13]} 39. Rxc7 {[%clk 0:00:20]}  Rd8 {[%clk 0:00:10]} 40. Rc8 {[%clk 0:00:20]} 1-0


[Site "https://www.chess.com"]

[Event "Titled Tuesday Blitz July 18 Early 2023"]
[White "Nan M K Khine Hlyan"]
[Black "Zaksaite, Salomeja"]
[WhiteFideId "13002899"]
[BlackFideId "12801496"]
[WhiteElo "1753"]
[BlackElo "2288"]
[Result "0-1"]
[Round "3"]
[TimeControl "180+2"]
[Date "2023.07.18"]
[WhiteClock "0:01:03"]
[BlackClock "0:01:19"]
[Board "219"]

1. e4 {[%clk 0:03:00]}  c5 {[%clk 0:02:57]} 2. f4 {[%clk 0:02:59]}  Nc6 {[%clk 0:02:57]} 3. Nf3 {[%clk 0:02:58]}  g6 {[%clk 0:02:55]} 4. d4 {[%clk 0:02:58]}  cxd4 {[%clk 0:02:54]} 5. Nxd4 {[%clk 0:02:58]}  Bg7 {[%clk 0:02:54]} 6. e5 {[%clk 0:02:57]}  d6 {[%clk 0:02:51]} 7. Nxc6 {[%clk 0:02:51]}  bxc6 {[%clk 0:02:51]} 8. Qf3 {[%clk 0:02:49]}  Bb7 {[%clk 0:02:43]} 9. exd6 {[%clk 0:02:44]}  exd6 {[%clk 0:02:43]} 10. Bd3 {[%clk 0:02:43]}  Ne7 {[%clk 0:02:43]} 11. O-O {[%clk 0:02:41]}  O-O {[%clk 0:02:40]} 12. f5 {[%clk 0:02:39]}  Qb6+ {[%clk 0:02:32]} 13. Kh1 {[%clk 0:02:37]}  c5 {[%clk 0:02:31]} 14. Qe2 {[%clk 0:02:25]}  Rae8 {[%clk 0:02:22]} 15. f6 {[%clk 0:02:08]}  Bxf6 {[%clk 0:02:22]} 16. Rxf6 {[%clk 0:02:03]}  Nd5 {[%clk 0:02:22]} 17. Qf1 {[%clk 0:01:54]}  Nxf6 {[%clk 0:02:21]} 18. Bh6 {[%clk 0:01:49]}  Qxb2 {[%clk 0:02:16]} 19. Nd2 {[%clk 0:01:42]}  Ng4 {[%clk 0:01:31]} 20. Bxf8 {[%clk 0:01:38]}  Bxg2+ {[%clk 0:01:29]} 21. Qxg2 {[%clk 0:01:24]}  Qxa1+ {[%clk 0:01:28]} 22. Nf1 {[%clk 0:01:16]}  Ne3 {[%clk 0:01:26]} 23. Qc6 {[%clk 0:01:09]}  Nxf1 {[%clk 0:01:20]} 24. Qxe8 {[%clk 0:01:08]}  Ne3+ {[%clk 0:01:20]} 25. Bf1 {[%clk 0:01:03]}  Qxf1# {[%clk 0:01:19]} 0-1


[Site "https://www.chess.com"]

[Event "Titled Tuesday Blitz July 18 Early 2023"]
[White "Firouzja, Alireza"]
[Black "Rakhmanov, Aleksandr"]
[WhiteFideId "12573981"]
[BlackFideId "4173708"]
[WhiteElo "3104"]
[BlackElo "2862"]
[Result "1/2-1/2"]
[Round "4"]
[TimeControl "180+2"]
[Date "2023.07.18"]
[WhiteClock "0:00:17"]
[BlackClock "0:00:07"]
[Board "2"]

1. d4 {[%clk 0:03:00]}  Nf6 {[%clk 0:02:59]} 2. Bg5 {[%clk 0:03:01]}  Ne4 {[%clk 0:02:59]} 3. Bf4 {[%clk 0:03:01]}  d6 {[%clk 0:02:59]} 4. f3 {[%clk 0:02:57]}  Nf6 {[%clk 0:03:00]} 5. e4 {[%clk 0:02:56]}  e5 {[%clk 0:03:00]} 6. Bg5 {[%clk 0:02:51]}  h6 {[%clk 0:02:56]} 7. Bh4 {[%clk 0:02:51]}  exd4 {[%clk 0:02:54]} 8. Qxd4 {[%clk 0:02:50]}  Nc6 {[%clk 0:02:54]} 9. Bxf6 {[%clk 0:02:29]}  Nxd4 {[%clk 0:02:49]} 10. Bxd8 {[%clk 0:02:30]}  Kxd8 {[%clk 0:02:39]} 11. Na3 {[%clk 0:02:28]}  Be6 {[%clk 0:02:29]} 12. O-O-O {[%clk 0:02:29]}  Nc6 {[%clk 0:02:28]} 13. Bc4 {[%clk 0:02:29]}  a6 {[%clk 0:02:28]} 14. Ne2 {[%clk 0:02:26]}  Be7 {[%clk 0:02:27]} 15. c3 {[%clk 0:02:25]}  Ne5 {[%clk 0:02:23]} 16. Bb3 {[%clk 0:02:15]}  Bxb3 {[%clk 0:02:11]} 17. axb3 {[%clk 0:02:15]}  g6 {[%clk 0:02:10]} 18. Nc4 {[%clk 0:02:08]}  Nxc4 {[%clk 0:02:07]} 19. bxc4 {[%clk 0:02:08]}  c6 {[%clk 0:02:06]} 20. Kc2 {[%clk 0:02:01]}  Kc7 {[%clk 0:02:07]} 21. Rd3 {[%clk 0:01:59]}  h5 {[%clk 0:02:06]} 22. Rhd1 {[%clk 0:01:58]}  Rhd8 {[%clk 0:02:07]} 23. Nd4 {[%clk 0:01:57]}  Bf6 {[%clk 0:02:04]} 24. h3 {[%clk 0:01:52]}  Be5 {[%clk 0:02:01]} 25. Nb3 {[%clk 0:01:51]}  h4 {[%clk 0:01:58]} 26. Na5 {[%clk 0:01:50]}  b6 {[%clk 0:01:54]} 27. Nb3 {[%clk 0:01:51]}  a5 {[%clk 0:01:54]} 28. Nd4 {[%clk 0:01:50]}  a4 {[%clk 0:01:49]} 29. f4 {[%clk 0:01:43]}  Bxf4 {[%clk 0:01:26]} 30. Rf1 {[%clk 0:01:39]}  g5 {[%clk 0:01:26]} 31. Ne2 {[%clk 0:01:39]}  a3 {[%clk 0:01:25]} 32. Kb1 {[%clk 0:01:03]}  axb2 {[%clk 0:01:15]} 33. Kxb2 {[%clk 0:01:02]}  b5 {[%clk 0:01:09]} 34. Nxf4 {[%clk 0:00:53]}  bxc4 {[%clk 0:01:05]} 35. Nd5+ {[%clk 0:00:53]}  cxd5 {[%clk 0:01:05]} 36. Rxf7+ {[%clk 0:00:53]}  Kc6 {[%clk 0:01:06]} 37. exd5+ {[%clk 0:00:53]}  Kb6 {[%clk 0:00:52]} 38. Rd4 {[%clk 0:00:52]}  Rdc8 {[%clk 0:00:50]} 39. Rg7 {[%clk 0:00:24]}  Kc5 {[%clk 0:00:47]} 40. Rb7 {[%clk 0:00:14]}  Rcb8 {[%clk 0:00:43]} 41. Rxb8 {[%clk 0:00:14]}  Rxb8+ {[%clk 0:00:40]} 42. Kc2 {[%clk 0:00:15]}  Rf8 {[%clk 0:00:35]} 43. Rg4 {[%clk 0:00:15]}  Rf2+ {[%clk 0:00:26]} 44. Kd1 {[%clk 0:00:14]}  Rf5 {[%clk 0:00:27]} 45. g3 {[%clk 0:00:14]}  hxg3 {[%clk 0:00:24]} 46. Rxg3 {[%clk 0:00:14]}  Rxd5+ {[%clk 0:00:24]} 47. Kc2 {[%clk 0:00:14]}  Rf5 {[%clk 0:00:24]} 48. Rg4 {[%clk 0:00:14]}  d5 {[%clk 0:00:21]} 49. h4 {[%clk 0:00:15]}  gxh4 {[%clk 0:00:19]} 50. Rxh4 {[%clk 0:00:15]}  Rf2+ {[%clk 0:00:20]} 51. Kc1 {[%clk 0:00:16]}  Kb5 {[%clk 0:00:15]} 52. Rh8 {[%clk 0:00:14]}  Ka4 {[%clk 0:00:09]} 53. Rb8 {[%clk 0:00:15]}  Ka3 {[%clk 0:00:09]} 54. Rb7 {[%clk 0:00:15]}  Rg2 {[%clk 0:00:08]} 55. Rb8 {[%clk 0:00:16]}  Rh2 {[%clk 0:00:08]} 56. Rb7 {[%clk 0:00:16]}  Rg2 {[%clk 0:00:07]} 57. Rb8 {[%clk 0:00:17]}  Rh2 {[%clk 0:00:07]} 58. Rb7 {[%clk 0:00:17]}  Rg2 {[%clk 0:00:07]} 1/2-1/2


[Site "https://www.chess.com"]

[Event "Titled Tuesday Blitz July 18 Early 2023"]
[White "Bacrot, Etienne"]
[Black "Dubov, Daniil"]
[WhiteFideId "605506"]
[BlackFideId "24126055"]
[WhiteElo "2854"]
[BlackElo "3092"]
[Result "0-1"]
[Round "4"]
[TimeControl "180+2"]
[Date "2023.07.18"]
[WhiteClock "0:00:00"]
[BlackClock "0:00:04"]
[Board "3"]

1. e4 {[%clk 0:03:00]}  c5 {[%clk 0:02:59]} 2. Nf3 {[%clk 0:03:01]}  e6 {[%clk 0:03:00]} 3. c3 {[%clk 0:03:00]}  d5 {[%clk 0:02:59]} 4. exd5 {[%clk 0:03:01]}  exd5 {[%clk 0:03:00]} 5. d4 {[%clk 0:03:01]}  Nc6 {[%clk 0:03:01]} 6. Bb5 {[%clk 0:03:01]}  Bd6 {[%clk 0:03:00]} 7. O-O {[%clk 0:02:56]}  Ne7 {[%clk 0:03:00]} 8. dxc5 {[%clk 0:02:56]}  Bxc5 {[%clk 0:03:01]} 9. Nbd2 {[%clk 0:02:56]}  O-O {[%clk 0:03:01]} 10. Nb3 {[%clk 0:02:56]}  Bb6 {[%clk 0:03:02]} 11. h3 {[%clk 0:02:56]}  Nf5 {[%clk 0:02:56]} 12. Bf4 {[%clk 0:02:46]}  h6 {[%clk 0:02:54]} 13. Qd2 {[%clk 0:02:38]}  Be6 {[%clk 0:02:53]} 14. Rfe1 {[%clk 0:02:34]}  Qf6 {[%clk 0:02:49]} 15. Ne5 {[%clk 0:02:22]}  Rac8 {[%clk 0:02:34]} 16. Rad1 {[%clk 0:02:00]}  Rfd8 {[%clk 0:02:22]} 17. Nxc6 {[%clk 0:01:59]}  bxc6 {[%clk 0:02:21]} 18. Ba6 {[%clk 0:01:59]}  Rc7 {[%clk 0:02:15]} 19. Bxc7 {[%clk 0:01:55]}  Bxc7 {[%clk 0:02:16]} 20. Nc5 {[%clk 0:01:53]}  Nh4 {[%clk 0:02:15]} 21. Nxe6 {[%clk 0:01:52]}  fxe6 {[%clk 0:02:04]} 22. Qd4 {[%clk 0:01:37]}  e5 {[%clk 0:01:58]} 23. Qg4 {[%clk 0:01:31]}  e4 {[%clk 0:01:48]} 24. f3 {[%clk 0:00:41]}  h5 {[%clk 0:01:17]} 25. Qxh5 {[%clk 0:00:37]}  Qf4 {[%clk 0:01:17]} 26. Qg4 {[%clk 0:00:25]}  Qh2+ {[%clk 0:01:11]} 27. Kf2 {[%clk 0:00:25]}  Bb6+ {[%clk 0:00:56]} 28. Rd4 {[%clk 0:00:25]}  Nxf3 {[%clk 0:00:38]} 29. Rxe4 {[%clk 0:00:13]}  Bxd4+ {[%clk 0:00:07]} 30. cxd4 {[%clk 0:00:13]}  Rf8 {[%clk 0:00:07]} 31. Ke3 {[%clk 0:00:03]}  Qg1+ {[%clk 0:00:07]} 32. Kd3 {[%clk 0:00:03]}  Qf1+ {[%clk 0:00:07]} 33. Re2 {[%clk 0:00:02]}  Qd1+ {[%clk 0:00:05]} 34. Kc3 {[%clk 0:00:02]}  Qc1+ {[%clk 0:00:06]} 35. Kb3 {[%clk 0:00:03]}  Qd1+ {[%clk 0:00:04]} 36. Ka3 {[%clk 0:00:03]}  Nxd4 {[%clk 0:00:04]} 37. Re3 {[%clk 0:00:00]}  Nc2+ {[%clk 0:00:04]} 0-1


[Site "https://www.chess.com"]

[Event "Titled Tuesday Blitz July 18 Early 2023"]
[White "Elsa167"]
[Black "Duda, Jan-Krzysztof"]
[BlackFideId "1170546"]
[WhiteElo "2805"]
[BlackElo "3021"]
[Result "0-1"]
[Round "4"]
[TimeControl "180+2"]
[Date "2023.07.18"]
[WhiteClock "0:00:00"]
[BlackClock "0:00:05"]
[Board "7"]

1. e4 {[%clk 0:03:00]}  e6 {[%clk 0:03:00]} 2. d3 {[%clk 0:03:01]}  d5 {[%clk 0:02:59]} 3. Nd2 {[%clk 0:03:01]}  Nc6 {[%clk 0:02:55]} 4. Ngf3 {[%clk 0:03:01]}  Nf6 {[%clk 0:02:52]} 5. c3 {[%clk 0:03:01]}  Bd6 {[%clk 0:02:47]} 6. Be2 {[%clk 0:03:00]}  O-O {[%clk 0:02:46]} 7. O-O {[%clk 0:03:01]}  a5 {[%clk 0:02:44]} 8. a4 {[%clk 0:03:01]}  Re8 {[%clk 0:02:43]} 9. Re1 {[%clk 0:03:00]}  h6 {[%clk 0:02:43]} 10. Bf1 {[%clk 0:03:00]}  e5 {[%clk 0:02:42]} 11. exd5 {[%clk 0:02:52]}  Nxd5 {[%clk 0:02:43]} 12. Nc4 {[%clk 0:02:52]}  Nb6 {[%clk 0:02:36]} 13. Nxb6 {[%clk 0:02:38]}  cxb6 {[%clk 0:02:37]} 14. Be3 {[%clk 0:02:38]}  Bg4 {[%clk 0:02:35]} 15. h3 {[%clk 0:02:36]}  Bh5 {[%clk 0:02:35]} 16. Be2 {[%clk 0:02:26]}  Bc7 {[%clk 0:02:31]} 17. Nd2 {[%clk 0:02:12]}  Bg6 {[%clk 0:02:30]} 18. Nc4 {[%clk 0:02:12]}  Re6 {[%clk 0:02:24]} 19. Qb3 {[%clk 0:02:00]}  e4 {[%clk 0:01:31]} 20. d4 {[%clk 0:01:25]}  Bf5 {[%clk 0:01:29]} 21. d5 {[%clk 0:00:53]}  Rg6 {[%clk 0:01:26]} 22. Bh5 {[%clk 0:00:41]}  Rxg2+ {[%clk 0:00:34]} 23. Kxg2 {[%clk 0:00:42]}  Qxd5 {[%clk 0:00:33]} 24. Bg4 {[%clk 0:00:34]}  Bxg4 {[%clk 0:00:25]} 25. hxg4 {[%clk 0:00:35]}  Qe6 {[%clk 0:00:25]} 26. Kf1 {[%clk 0:00:31]}  Qxg4 {[%clk 0:00:25]} 27. Qd1 {[%clk 0:00:24]}  Qh3+ {[%clk 0:00:23]} 28. Ke2 {[%clk 0:00:24]}  Qf3+ {[%clk 0:00:17]} 29. Kf1 {[%clk 0:00:23]}  Qh3+ {[%clk 0:00:18]} 30. Ke2 {[%clk 0:00:23]}  Rd8 {[%clk 0:00:18]} 31. Nd2 {[%clk 0:00:12]}  Ne5 {[%clk 0:00:16]} 32. Rh1 {[%clk 0:00:07]}  Qg4+ {[%clk 0:00:14]} 33. Kf1 {[%clk 0:00:08]}  Nf3 {[%clk 0:00:14]} 34. Qe2 {[%clk 0:00:07]}  Rd6 {[%clk 0:00:10]} 35. Rd1 {[%clk 0:00:02]}  Rg6 {[%clk 0:00:09]} 36. Nxf3 {[%clk 0:00:03]}  Qg2+ {[%clk 0:00:06]} 37. Ke1 {[%clk 0:00:03]}  Qxh1+ {[%clk 0:00:06]} 38. Kd2 {[%clk 0:00:03]}  Qxf3 {[%clk 0:00:07]} 39. Qc4 {[%clk 0:00:04]}  Rd6+ {[%clk 0:00:07]} 40. Bd4 {[%clk 0:00:04]}  Qxf2+ {[%clk 0:00:06]} 41. Kc1 {[%clk 0:00:04]}  Qf4+ {[%clk 0:00:06]} 42. Kb1 {[%clk 0:00:05]}  Rd7 {[%clk 0:00:05]} 43. Rg1 {[%clk 0:00:05]}  g5 {[%clk 0:00:03]} 44. Rf1 {[%clk 0:00:03]}  Qg4 {[%clk 0:00:03]} 45. Qb5 {[%clk 0:00:03]}  e3 {[%clk 0:00:02]} 46. Re1 {[%clk 0:00:02]}  e2 {[%clk 0:00:02]} 47. Rxe2 {[%clk 0:00:02]}  Kh7 {[%clk 0:00:02]} 48. Ka2 {[%clk 0:00:01]}  Kg6 {[%clk 0:00:02]} 49. Re1 {[%clk 0:00:01]}  Qf5 {[%clk 0:00:02]} 50. Re2 {[%clk 0:00:01]}  Qxb5 {[%clk 0:00:02]} 51. axb5 {[%clk 0:00:02]}  f5 {[%clk 0:00:02]} 52. Re6+ {[%clk 0:00:02]}  Kh5 {[%clk 0:00:03]} 53. Bxb6 {[%clk 0:00:03]}  Bxb6 {[%clk 0:00:04]} 54. Rd6 {[%clk 0:00:03]}  Rf7 {[%clk 0:00:05]} 55. Rxb6 {[%clk 0:00:00]}  f4 {[%clk 0:00:05]} 0-1


[Site "https://www.chess.com"]

[Event "Titled Tuesday Blitz July 18 Early 2023"]
[White "Svane, Rasmus"]
[Black "Mahdavi, Reza"]
[WhiteFideId "4657101"]
[BlackFideId "12595926"]
[WhiteElo "2968"]
[BlackElo "2776"]
[Result "1-0"]
[Round "4"]
[TimeControl "180+2"]
[Date "2023.07.18"]
[WhiteClock "0:00:55"]
[BlackClock "0:00:40"]
[Board "10"]

1. Nf3 {[%clk 0:03:00]}  Nf6 {[%clk 0:02:54]} 2. g3 {[%clk 0:03:00]}  e6 {[%clk 0:02:53]} 3. Bg2 {[%clk 0:03:00]}  d5 {[%clk 0:02:47]} 4. O-O {[%clk 0:03:00]}  Be7 {[%clk 0:02:48]} 5. c4 {[%clk 0:03:01]}  O-O {[%clk 0:02:48]} 6. b3 {[%clk 0:03:01]}  dxc4 {[%clk 0:02:44]} 7. bxc4 {[%clk 0:03:02]}  c5 {[%clk 0:02:45]} 8. Nc3 {[%clk 0:02:58]}  Nc6 {[%clk 0:02:46]} 9. Rb1 {[%clk 0:02:56]}  Rb8 {[%clk 0:02:46]} 10. d3 {[%clk 0:02:42]}  h6 {[%clk 0:02:46]} 11. Bf4 {[%clk 0:02:31]}  Bd6 {[%clk 0:02:46]} 12. Bxd6 {[%clk 0:02:32]}  Qxd6 {[%clk 0:02:47]} 13. Nd2 {[%clk 0:02:31]}  b6 {[%clk 0:02:18]} 14. Nb5 {[%clk 0:02:31]}  Qd7 {[%clk 0:02:18]} 15. Bxc6 {[%clk 0:02:31]}  Qxc6 {[%clk 0:02:18]} 16. Nxa7 {[%clk 0:02:31]}  Qa8 {[%clk 0:02:11]} 17. Nxc8 {[%clk 0:02:31]}  Rfxc8 {[%clk 0:02:12]} 18. Rb2 {[%clk 0:02:31]}  e5 {[%clk 0:02:08]} 19. Qc2 {[%clk 0:02:31]}  Qc6 {[%clk 0:02:07]} 20. Rfb1 {[%clk 0:02:30]}  h5 {[%clk 0:02:00]} 21. h3 {[%clk 0:02:13]}  h4 {[%clk 0:01:59]} 22. g4 {[%clk 0:02:13]}  Re8 {[%clk 0:01:54]} 23. f3 {[%clk 0:01:58]}  e4 {[%clk 0:01:46]} 24. fxe4 {[%clk 0:01:41]}  Qd6 {[%clk 0:01:40]} 25. Nf1 {[%clk 0:01:40]}  Nh7 {[%clk 0:01:34]} 26. Qd2 {[%clk 0:01:38]}  f6 {[%clk 0:01:35]} 27. Qe3 {[%clk 0:01:35]}  Ng5 {[%clk 0:01:35]} 28. Kg2 {[%clk 0:01:35]}  Ne6 {[%clk 0:01:24]} 29. Nh2 {[%clk 0:01:30]}  Nf4+ {[%clk 0:01:24]} 30. Kh1 {[%clk 0:01:29]}  g5 {[%clk 0:01:24]} 31. Qf3 {[%clk 0:01:21]}  Kg7 {[%clk 0:01:22]} 32. Nf1 {[%clk 0:01:20]}  Ne6 {[%clk 0:01:11]} 33. Ne3 {[%clk 0:01:20]}  Nd4 {[%clk 0:01:12]} 34. Qf2 {[%clk 0:01:14]}  Rb7 {[%clk 0:01:03]} 35. a4 {[%clk 0:01:13]}  Ra8 {[%clk 0:01:03]} 36. Nd5 {[%clk 0:01:11]}  Rxa4 {[%clk 0:01:02]} 37. Rxb6 {[%clk 0:01:07]}  Rxb6 {[%clk 0:01:02]} 38. Rxb6 {[%clk 0:01:08]}  Ra1+ {[%clk 0:01:02]} 39. Kg2 {[%clk 0:01:08]}  Nc6 {[%clk 0:01:02]} 40. Rb7+ {[%clk 0:01:01]}  Kh6 {[%clk 0:00:40]} 41. Nxf6 {[%clk 0:00:55]} 1-0


[Site "https://www.chess.com"]

[Event "Titled Tuesday Blitz July 18 Early 2023"]
[White "djokovic74"]
[Black "Svane, Frederik"]
[BlackFideId "12923044"]
[WhiteElo "2767"]
[BlackElo "2966"]
[Result "0-1"]
[Round "4"]
[TimeControl "180+2"]
[Date "2023.07.18"]
[WhiteClock "0:00:02"]
[BlackClock "0:00:11"]
[Board "11"]

1. e4 {[%clk 0:03:00]}  c5 {[%clk 0:03:00]} 2. Nf3 {[%clk 0:03:01]}  d6 {[%clk 0:03:00]} 3. d4 {[%clk 0:03:01]}  cxd4 {[%clk 0:03:01]} 4. Nxd4 {[%clk 0:03:02]}  Nf6 {[%clk 0:03:02]} 5. Nc3 {[%clk 0:03:03]}  a6 {[%clk 0:03:02]} 6. Be2 {[%clk 0:03:03]}  e6 {[%clk 0:03:02]} 7. Be3 {[%clk 0:03:03]}  Be7 {[%clk 0:03:01]} 8. g4 {[%clk 0:03:03]}  Nc6 {[%clk 0:02:59]} 9. g5 {[%clk 0:03:01]}  Nd7 {[%clk 0:02:59]} 10. h4 {[%clk 0:03:01]}  Qc7 {[%clk 0:02:57]} 11. Qd2 {[%clk 0:02:59]}  b5 {[%clk 0:02:57]} 12. a3 {[%clk 0:02:56]}  Bb7 {[%clk 0:02:57]} 13. O-O-O {[%clk 0:02:55]}  Rc8 {[%clk 0:02:53]} 14. h5 {[%clk 0:02:52]}  Nce5 {[%clk 0:02:38]} 15. h6 {[%clk 0:02:30]}  g6 {[%clk 0:02:35]} 16. f4 {[%clk 0:02:31]}  Nc4 {[%clk 0:02:25]} 17. Bxc4 {[%clk 0:02:31]}  Qxc4 {[%clk 0:02:26]} 18. Nb3 {[%clk 0:01:53]}  b4 {[%clk 0:02:04]} 19. axb4 {[%clk 0:01:47]}  Qxb4 {[%clk 0:02:05]} 20. Rhf1 {[%clk 0:01:33]}  O-O {[%clk 0:01:34]} 21. f5 {[%clk 0:01:19]}  Rfe8 {[%clk 0:00:33]} 22. fxe6 {[%clk 0:00:37]}  fxe6 {[%clk 0:00:34]} 23. Bf4 {[%clk 0:00:37]}  Ne5 {[%clk 0:00:23]} 24. Bxe5 {[%clk 0:00:27]}  dxe5 {[%clk 0:00:23]} 25. Kb1 {[%clk 0:00:27]}  Bc6 {[%clk 0:00:22]} 26. Qh2 {[%clk 0:00:18]}  Bxg5 {[%clk 0:00:17]} 27. Qxe5 {[%clk 0:00:18]}  Bxh6 {[%clk 0:00:17]} 28. Rh1 {[%clk 0:00:14]}  Bg7 {[%clk 0:00:17]} 29. Qh2 {[%clk 0:00:15]}  h5 {[%clk 0:00:12]} 30. Rdg1 {[%clk 0:00:15]}  Bxe4 {[%clk 0:00:12]} 31. Qh4 {[%clk 0:00:07]}  Rxc3 {[%clk 0:00:12]} 32. Rxg6 {[%clk 0:00:03]}  Bxc2+ {[%clk 0:00:11]} 33. Ka2 {[%clk 0:00:04]}  Bxb3+ {[%clk 0:00:11]} 34. Kb1 {[%clk 0:00:03]}  Bc2+ {[%clk 0:00:11]} 35. Ka2 {[%clk 0:00:03]}  Ra3+ {[%clk 0:00:11]} 36. bxa3 {[%clk 0:00:02]}  Qb3# {[%clk 0:00:11]} 0-1


[Site "https://www.chess.com"]

[Event "Titled Tuesday Blitz July 18 Early 2023"]
[White "Aravindh, Chithambaram VR."]
[Black "realmadridfc123"]
[WhiteFideId "5072786"]
[WhiteElo "2952"]
[BlackElo "2747"]
[Result "1-0"]
[Round "4"]
[TimeControl "180+2"]
[Date "2023.07.18"]
[WhiteClock "0:00:08"]
[BlackClock "0:00:04"]
[Board "13"]

1. b3 {[%clk 0:03:00]}  c5 {[%clk 0:02:55]} 2. e4 {[%clk 0:02:59]}  Nc6 {[%clk 0:02:55]} 3. Bb2 {[%clk 0:02:58]}  d6 {[%clk 0:02:43]} 4. Nf3 {[%clk 0:02:54]}  Nf6 {[%clk 0:02:43]} 5. Nc3 {[%clk 0:02:52]}  g6 {[%clk 0:02:43]} 6. Nd5 {[%clk 0:02:29]}  Bg7 {[%clk 0:02:34]} 7. Nxf6+ {[%clk 0:02:28]}  exf6 {[%clk 0:02:34]} 8. Bc4 {[%clk 0:02:28]}  O-O {[%clk 0:02:32]} 9. O-O {[%clk 0:02:28]}  Be6 {[%clk 0:02:32]} 10. Bxe6 {[%clk 0:02:06]}  fxe6 {[%clk 0:02:32]} 11. d4 {[%clk 0:02:07]}  f5 {[%clk 0:02:32]} 12. exf5 {[%clk 0:02:02]}  Rxf5 {[%clk 0:02:29]} 13. Qe2 {[%clk 0:01:59]}  Qd7 {[%clk 0:02:19]} 14. Rad1 {[%clk 0:01:54]}  Raf8 {[%clk 0:02:09]} 15. Rfe1 {[%clk 0:01:45]}  Bxd4 {[%clk 0:02:08]} 16. Bxd4 {[%clk 0:01:11]}  Nxd4 {[%clk 0:02:07]} 17. Nxd4 {[%clk 0:01:10]}  cxd4 {[%clk 0:02:08]} 18. f3 {[%clk 0:00:55]}  e5 {[%clk 0:02:08]} 19. c3 {[%clk 0:00:55]}  dxc3 {[%clk 0:02:00]} 20. Qc4+ {[%clk 0:00:55]}  Qf7 {[%clk 0:01:47]} 21. Qxc3 {[%clk 0:00:56]}  Rd8 {[%clk 0:01:46]} 22. h3 {[%clk 0:00:52]}  Rf6 {[%clk 0:01:36]} 23. Rxe5 {[%clk 0:00:50]}  Re6 {[%clk 0:01:15]} 24. Rxe6 {[%clk 0:00:42]}  Qxe6 {[%clk 0:01:16]} 25. Qc7 {[%clk 0:00:41]}  Rd7 {[%clk 0:01:13]} 26. Qb8+ {[%clk 0:00:40]}  Kg7 {[%clk 0:01:13]} 27. Qxa7 {[%clk 0:00:41]}  d5 {[%clk 0:01:13]} 28. Qd4+ {[%clk 0:00:39]}  Kg8 {[%clk 0:01:12]} 29. a4 {[%clk 0:00:36]}  Kf7 {[%clk 0:00:38]} 30. a5 {[%clk 0:00:33]}  Qf6 {[%clk 0:00:33]} 31. Qa4 {[%clk 0:00:23]}  Qe6 {[%clk 0:00:21]} 32. Qd4 {[%clk 0:00:17]}  Qf6 {[%clk 0:00:21]} 33. b4 {[%clk 0:00:13]}  Qxd4+ {[%clk 0:00:20]} 34. Rxd4 {[%clk 0:00:14]}  Ke6 {[%clk 0:00:20]} 35. b5 {[%clk 0:00:14]}  Rc7 {[%clk 0:00:20]} 36. Ra4 {[%clk 0:00:14]}  Ke5 {[%clk 0:00:13]} 37. a6 {[%clk 0:00:13]}  bxa6 {[%clk 0:00:13]} 38. bxa6 {[%clk 0:00:14]}  Ra7 {[%clk 0:00:14]} 39. Kf2 {[%clk 0:00:15]}  d4 {[%clk 0:00:14]} 40. Ke2 {[%clk 0:00:13]}  Kf4 {[%clk 0:00:13]} 41. Kf2 {[%clk 0:00:09]}  Ke5 {[%clk 0:00:14]} 42. Ra5+ {[%clk 0:00:07]}  Ke6 {[%clk 0:00:13]} 43. Ke2 {[%clk 0:00:08]}  Kd6 {[%clk 0:00:12]} 44. Kd3 {[%clk 0:00:08]}  Kc6 {[%clk 0:00:13]} 45. Ra1 {[%clk 0:00:08]}  Kb6 {[%clk 0:00:13]} 46. f4 {[%clk 0:00:08]}  Kc5 {[%clk 0:00:12]} 47. g4 {[%clk 0:00:07]}  h6 {[%clk 0:00:11]} 48. f5 {[%clk 0:00:07]}  gxf5 {[%clk 0:00:11]} 49. gxf5 {[%clk 0:00:08]}  Kd5 {[%clk 0:00:10]} 50. Ra5+ {[%clk 0:00:08]}  Kd6 {[%clk 0:00:11]} 51. Kxd4 {[%clk 0:00:08]}  Kc6 {[%clk 0:00:10]} 52. Ke5 {[%clk 0:00:08]}  Kb6 {[%clk 0:00:10]} 53. Ra1 {[%clk 0:00:08]}  Ra8 {[%clk 0:00:09]} 54. a7 {[%clk 0:00:08]}  Kb7 {[%clk 0:00:10]} 55. Ke6 {[%clk 0:00:08]}  h5 {[%clk 0:00:04]} 56. f6 {[%clk 0:00:08]} 1-0


[Site "https://www.chess.com"]